[Event "Marienbad B2-IM 2024"]
[Site "Marianske Lazne"]
[Date "2024.01.14"]
[Round "2.20"]
[White "Lima, Darcy"]
[Black "Kejna, Piotr"]
[Result "1-0"]
[ECO "A15"]
[WhiteElo "2370"]
[BlackElo "2269"]
[Annotator "RC"]
[PlyCount "101"]
[EventDate "2024.01.10"]
[EventType "tourn"]
[EventCountry "CZE"]
[SourceTitle "playchess.com"]
[Source "ChessBase"]
[SourceQuality "1"]
[TimeControl "40/5400+30:1800+30"]

1. c4 {[%emt 0:00:01]} Nf6 {[%emt 0:00:16]} 2. g3 {[%emt 0:00:05]} e5 {[%emt 0:00:16]} 3. Nf3 {[%emt 0:00:32]} Nc6 {[%emt 0:00:07]} 4. Bg2 {[%emt 0:00:15]} d5 {[%emt 0:00:38]} 5. cxd5 {[%emt 0:00:07]} Nxd5 {[%emt 0:00:03]} 6. O-O {[%emt 0:00:30]} Be7 {[%emt 0:00:18]} 7. d4 {[%emt 0:01:14]} exd4 {[%emt 0:09:07]} 8. Nxd4 {[%emt 0:00:11]} Nxd4 {[%emt 0:01:05]} 9. Qxd4 {[%emt 0:00:10]} Nf6 {[%emt 0:00:38]} 10. Qa4+ {[%emt 0:05:31]} c6 {[%emt 0:04:08]} 11. Rd1 {[%emt 0:01:42]} Bd7 {[%emt 0:05:31]} 12. Nd2 {[%emt 0:13:35]} O-O {[%emt 0:02:46]} 13. Qc2 {[%emt 0:00:03]} Qc8 {[%emt 0:02:36]} 14. Nc4 {[%emt 0:02:20]} Bh3 {[%emt 0:06:57]} 15. Nd6 {[%emt 0:06:57]} Bxd6 {[%emt 0:00:15]} 16. Rxd6 {[%emt 0:00:01]} Bxg2 {[%emt 0:03:09]} 17. Kxg2 {[%emt 0:00:02]} Rd8 {[%emt 0:01:27]} 18. Rxd8+ {[%emt 0:05:53]} Qxd8 {[%emt 0:00:01]} 19. Be3 {[%emt 0:00:50]} Qd5+ {[%emt 0:06:49]} 20. f3 {[%emt 0:02:04]} Re8 {[%emt 0:14:40]} 21. Bf2 {[%emt 0:04:43]} Qb5 {[%emt 0:06:46]} 22. e4 {[%emt 0:02:08]} Rd8 {[%emt 0:02:29]} 23. b3 {[%emt 0:10:41]} h6 {[%emt 0:08:26]} 24. Rd1 {[%emt 0:12:18]} Rxd1 25. Qxd1 {[%emt 0:00:01]} Qa5 {[%emt 0:01:49]} 26. a4 {[%emt 0:02:41]} Qc7 {[%emt 0:05:59]} 27. g4 {[%emt 0:09:54]} b6 {[%emt 0:04:13]} 28. h4 {[%emt 0:01:46]} Qd7 {[%emt 0:01:46]} 29. Qxd7 {[%emt 0:01:01]} Nxd7 {[%emt 0:00:02]} 30. f4 {[%emt 0:00:14]} c5 {[%emt 0:02:09]} 31. e5 {[%emt 0:09:11]} Nb8 {[%emt 0:03:24]} 32. Be1 {[%emt 0:07:41]} Nc6 {[%emt 0:05:20]} 33. Bc3 {[%emt 0:00:37]} h5 {[%emt 0:02:23]} 34. gxh5 {[%emt 0:00:30]} Ne7 {[%emt 0:00:50]} 35. Kf3 {[%emt 0:00:33]} Kh7 {[%emt 0:00:42]} 36. Kg4 {[%emt 0:01:13]} a6 {[%emt 0:00:36]} 37. f5 {[%emt 0:00:45]} b5 {[%emt 0:00:36]} 38. e6 {[%emt 0:00:25]} fxe6 {[%emt 0:00:21]} 39. fxe6 {[%emt 0:00:04]} Kg8 {[%emt 0:00:13]} 40. axb5 {[%emt 0:01:01]} axb5 {[%emt 0:00:08]} 41. Kf3 {[%emt 0:09:52]} c4 {[%emt 0:21:14]} 42. bxc4 {[%emt 0:01:01]} bxc4 {[%emt 0:00:01]} 43. Ke4 {[%emt 0:00:08]} Kf8 {[%emt 0:01:44]} 44. Bb2 {[%emt 0:01:52]} Ng8 {[%emt 0:02:53]} 45. Kd5 {[%emt 0:07:19]} Ne7+ {[%emt 0:02:22]} 46. Kd6 {[%emt 0:05:54]} Ke8 {[%emt 0:00:08]} 47. Bxg7 {[%emt 0:02:30]} Nf5+ {[%emt 0:00:00]} 48. Ke5 {[%emt 0:00:02]} Nxh4 {[%emt 0:00:14]} 49. Bf6 {[%emt 0:01:49]} Nf3+ {[%emt 0:01:16]} 50. Kf4 {[%emt 0:00:18]} Nd2 {[%emt 0:00:56]} 51. h6 {[%emt 0:00:15]} 1-0

[Event "Marienbad B2-IM 2024"]
[Site "Marianske Lazne"]
[Date "2024.01.15"]
[Round "3.16"]
[White "Kejna, Piotr"]
[Black "Wang, Yukun"]
[Result "0-1"]
[ECO "B90"]
[WhiteElo "2269"]
[BlackElo "2117"]
[Annotator "NA RC"]
[PlyCount "142"]
[EventDate "2024.01.10"]
[EventType "tourn"]
[EventCountry "CZE"]
[SourceTitle "playchess.com"]
[Source "ChessBase"]
[SourceQuality "1"]
[TimeControl "40/5400+30:1800+30"]

1. e4 {[%emt 0:00:01]} c5 {[%emt 0:00:04]} 2. Nf3 {[%emt 0:00:04]} d6 {[%emt 0:00:23]} 3. d4 {[%emt 0:00:10]} cxd4 {[%emt 0:00:05]} 4. Nxd4 {[%emt 0:00:04]} Nf6 {[%emt 0:00:05]} 5. Nc3 {[%emt 0:00:04]} a6 {[%emt 0:00:08]} 6. Be3 {[%emt 0:00:13]} e6 {[%emt 0:00:07]} 7. g4 {[%emt 0:00:14]} e5 {[%emt 0:00:10]} 8. Nf5 {[%emt 0:00:12]} g6 {[%emt 0:00:02]} 9. g5 {[%emt 0:00:07]} gxf5 {[%emt 0:00:03]} 10. exf5 {[%emt 0:00:09]} d5 {[%emt 0:00:03]} 11. Qf3 {[%emt 0:00:10]} Ne4 {[%emt 0:00:08]} 12. Nxe4 {[%emt 0:00:24]} dxe4 {[%emt 0:00:04]} 13. Qxe4 {[%emt 0:00:14]} Nc6 {[%emt 0:00:04]} 14. Bc4 {[%emt 0:03:10]} Qd7 {[%emt 0:02:11]} 15. Bd5 {[%emt 0:07:53]} Bd6 {[%emt 0:19:01]} 16. O-O-O {[%emt 0:09:06]} Qc7 {[%emt 0:21:58]} 17. Bxc6+ {[%emt 0:10:40]} bxc6 {[%emt 0:00:11]} 18. Bb6 {[%emt 0:01:32]} Qxb6 {[%emt 0:00:15]} 19. Rxd6 {[%emt 0:00:07]} O-O {[%emt 0:00:17]} 20. g6 {[%emt 0:13:22]} fxg6 {[%emt 0:07:37]} 21. fxg6 {[%emt 0:02:06]} Qc5 {[%emt 0:01:23]} 22. Rxc6 {[%emt 0:20:54]} Qd4 {[%emt 0:07:27]} 23. gxh7+ {[%emt 0:13:37]} Kh8 {[%emt 0:00:06]} 24. Qxd4 {[%emt 0:00:56]} exd4 {[%emt 0:00:08]} 25. Rg1 {[%emt 0:03:08]} Bf5 {[%emt 0:02:01]} 26. Rg8+ {[%emt 0:02:02]} Kxh7 {[%emt 0:06:23]} 27. Rxf8 {[%emt 0:00:09]} Rxf8 28. Rc4 {[%emt 0:06:21]} d3 {[%emt 0:03:11]} 29. cxd3 {[%emt 0:00:58]} Bxd3 {[%emt 0:00:06]} 30. Rd4 {[%emt 0:01:24]} Bg6 {[%emt 0:02:06]} 31. f4 {[%emt 0:03:51]} Rc8+ {[%emt 0:00:25]} 32. Kd1 {[%emt 0:00:13]} Bb1 {[%emt 0:00:34]} 33. Rd7+ {[%emt 0:00:59]} Kg6 {[%emt 0:00:55]} 34. Rd6+ {[%emt 0:00:33]} Kf5 {[%emt 0:00:01]} 35. Rxa6 {[%emt 0:00:44]} Kxf4 {[%emt 0:00:14]} 36. Ra3 {[%emt 0:01:18]} Ke4 {[%emt 0:01:25]} 37. Rc3 {[%emt 0:00:50]} Rh8 {[%emt 0:00:35]} 38. Kc1 {[%emt 0:00:42]} Bd3 {[%emt 0:00:08]} 39. Rc7 {[%emt 0:00:41]} Rxh2 {[%emt 0:00:04]} 40. Re7+ {[%emt 0:00:29]} Kd4 {[%emt 0:00:01]} 41. Rc7 {[%emt 0:16:05]} Ke3 {[%emt 0:00:39]} 42. b3 {[%emt 0:01:59]} Rxa2 {[%emt 0:00:09]} 43. Rc8 {[%emt 0:01:03]} Kd4 {[%emt 0:00:37]} 44. Rc7 {[%emt 0:00:17]} Be4 {[%emt 0:01:36]} 45. Rc4+ {[%emt 0:01:30]} Kd3 {[%emt 0:00:21]} 46. Rc7 {[%emt 0:08:11]} Bd5 {[%emt 0:03:19]} 47. Rd7 {[%emt 0:00:14]} Kc3 {[%emt 0:00:50]} 48. Kb1 {[%emt 0:00:34]} Ra5 {[%emt 0:00:11]} 49. Re7 {[%emt 0:01:02]} Bxb3 {[%emt 0:01:00]} 50. Re3+ {[%emt 0:00:40]} Kb4 {[%emt 0:00:12]} 51. Rg3 {[%emt 0:01:07]} Re5 {[%emt 0:00:44]} 52. Kc1 {[%emt 0:00:47]} Re2 {[%emt 0:00:29]} 53. Rg7 {[%emt 0:01:08]} Rf2 {[%emt 0:01:51]} 54. Rg4+ {[%emt 0:01:03]} Bc4 {[%emt 0:00:10]} 55. Rg3 {[%emt 0:00:14]} Kc5 {[%emt 0:01:29]} 56. Rg4 {[%emt 0:00:07]} Kd5 {[%emt 0:04:17]} 57. Rh4 {[%emt 0:00:47]} Bd3 {[%emt 0:00:12]} 58. Rb4 {[%emt 0:02:01]} Bc4 {[%emt 0:00:19]} 59. Rb2 {[%emt 0:00:40]} Rf1+ {[%emt 0:00:05]} 60. Kc2 {[%emt 0:00:30]} Kd4 {[%emt 0:00:03]} 61. Kd2 {[%emt 0:00:21]} Rf3 {[%emt 0:01:06]} 62. Ke1 {[%emt 0:00:40]} Rh3 {[%emt 0:04:13]} 63. Rg2 {[%emt 0:00:35]} Bd3 {[%emt 0:02:07]} 64. Rf2 {[%emt 0:00:31]} Rh1+ {[%emt 0:00:57]} 65. Kd2 {[%emt 0:00:01]} Ra1 {[%emt 0:00:09]} 66. Rf4+ {[%emt 0:00:34]} Be4 {[%emt 0:00:01]} 67. Rf8 {[%emt 0:00:56]} Ra2+ {[%emt 0:00:08]} 68. Kc1 {[%emt 0:00:09]} Rc2+ {[%emt 0:00:16]} 69. Kd1 {[%emt 0:00:01]} Ke3 {[%emt 0:00:16]} 70. Rb8 {[%emt 0:01:00]} Rh2 {[%emt 0:02:18]} 71. Rb4 {[%emt 0:00:46]} Rh1# {[%emt 0:00:05]} 0-1

[Event "Marienbad B2-IM 2024"]
[Site "Marianske Lazne"]
[Date "2024.01.15"]
[Round "3.17"]
[White "Lim, Zhuo Ren"]
[Black "Lima, Darcy"]
[Result "1/2-1/2"]
[ECO "A05"]
[WhiteElo "2218"]
[BlackElo "2370"]
[Annotator "ChessBase"]
[PlyCount "62"]
[EventDate "2024.01.10"]
[EventType "tourn"]
[EventCountry "CZE"]
[SourceTitle "playchess.com"]
[Source "ChessBase"]
[SourceQuality "1"]
[TimeControl "40/5400+30:1800+30"]

1. Nf3 {[%emt 0:00:06]} Nf6 {[%emt 0:00:08]} 2. c4 {[%emt 0:00:12]} g6 {[%emt 0:00:08]} 3. g3 {[%emt 0:00:14]} Bg7 {[%emt 0:00:08]} 4. Bg2 {[%emt 0:00:08]} O-O {[%emt 0:00:08]} 5. O-O {[%emt 0:00:12]} d6 {[%emt 0:01:39]} 6. d4 {[%emt 0:00:14]} c5 {[%emt 0:00:06]} 7. b3 {[%emt 0:00:22]} cxd4 {[%emt 0:05:07]} 8. Nxd4 {[%emt 0:00:12]} d5 {[%emt 0:00:07]} 9. cxd5 {[%emt 0:06:22]} Nxd5 {[%emt 0:00:02]} 10. Bb2 {[%emt 0:00:08]} Qd7 {[%emt 0:17:31]} 11. Qc1 {[%emt 0:08:17]} Rd8 {[%emt 0:16:28]} 12. Nf3 {[%emt 0:13:29]} Bxb2 {[%emt 0:17:02]} 13. Qxb2 {[%emt 0:00:05]} Nc6 {[%emt 0:00:05]} 14. Rd1 {[%emt 0:02:41]} Qe6 {[%emt 0:00:38]} 15. Ng5 {[%emt 0:04:22]} Qf6 {[%emt 0:00:50]} 16. Qxf6 {[%emt 0:00:17]} Nxf6 {[%emt 0:00:02]} 17. Rxd8+ {[%emt 0:00:26]} Nxd8 {[%emt 0:00:01]} 18. Nc3 {[%emt 0:00:20]} Bd7 {[%emt 0:00:22]} 19. Nd5 {[%emt 0:02:20]} Nxd5 {[%emt 0:02:26]} 20. Bxd5 {[%emt 0:00:04]} Rc8 {[%emt 0:00:15]} 21. Rd1 {[%emt 0:00:23]} Bb5 {[%emt 0:04:48]} 22. Kf1 {[%emt 0:05:05]} a5 {[%emt 0:05:37]} 23. Ke1 {[%emt 0:02:08]} b6 {[%emt 0:01:25]} 24. Nf3 {[%emt 0:05:22]} e6 {[%emt 0:08:04]} 25. Be4 {[%emt 0:00:31]} Kf8 {[%emt 0:00:08]} 26. Ne5 {[%emt 0:05:20]} Ke7 {[%emt 0:01:00]} 27. a4 {[%emt 0:01:47]} Be8 {[%emt 0:02:52]} 28. Nc4 {[%emt 0:00:35]} Rb8 {[%emt 0:00:47]} 29. f4 {[%emt 0:03:48]} f6 {[%emt 0:02:32]} 30. h4 {[%emt 0:01:49]} b5 {[%emt 0:02:12]} 31. Nxa5 {[%emt 0:00:56]} bxa4 {[%emt 0:00:04]} 1/2-1/2

[Event "Marienbad B2-IM 2024"]
[Site "Marianske Lazne"]
[Date "2024.01.15"]
[Round "3.18"]
[White "Plischki, Sebastian"]
[Black "Ivanov, Mike"]
[Result "0-1"]
[ECO "E68"]
[WhiteElo "2345"]
[BlackElo "2356"]
[Annotator "TA"]
[PlyCount "92"]
[EventDate "2024.01.10"]
[EventType "tourn"]
[EventCountry "CZE"]
[SourceTitle "playchess.com"]
[Source "ChessBase"]
[SourceQuality "1"]
[TimeControl "40/5400+30:1800+30"]

{[%evp 18,92,46,50,71,34,21,27,23,0,0,0,16,0,0,0,0,-9,0,-56,-50,-44,-14,-32,-34,-37,-28,-76,-22,-34,-26,-127,-121,-123,-127,-138,-81,-83,-83,-84,-88,-95,-96,-116,-118,-112,-110,-106,-107,-121,-39,-123,-108,-141,-131,-131,-140,-157,-157,-456,-425,-5405,-114,-210,-224,-207,-210,-1144,-1118,-6131,-6079,-6095,-6087,-29986,-29987,-29987,-29988]} 1. d4 {[%emt 0:00:04]} Nf6 {[%emt 0:00:17]} 2. c4 {[%emt 0:00:17]} g6 {[%emt 0:00:22]} 3. g3 {[%emt 0:00:45]} Bg7 {[%emt 0:00:10]} 4. Bg2 {[%emt 0:00:07]} O-O {[%emt 0:00:13]} 5. Nc3 {[%emt 0:00:13]} d6 {[%emt 0:00:34]} 6. Nf3 {[%emt 0:00:10]} Nbd7 {[%emt 0:00:26]} 7. O-O {[%emt 0:00:12]} e5 {[%emt 0:00:15]} 8. e4 {[%emt 0:00:33]} a6 {[%emt 0:00:44]} 9. Qc2 {[%emt 0:01:54]} exd4 {[%emt 0:04:39]} 10. Nxd4 {[%emt 0:00:08]} c5 {[%emt 0:01:07] [#] E68: King's Indian: Fianchetto: 6...Nbd7 7 0-0 e5 8 e4.} 11. Nf3 $146 {[%emt 0:07:22]} ({Predecessor:} 11. Nde2 Rb8 12. a4 Re8 13. b3 Qe7 14. Bb2 b6 15. Nf4 Bb7 16. Rfe1 Ne5 17. Rad1 Nc6 18. Nfd5 Nxd5 19. Nxd5 {1-0 Tukmakov,V (2595)-Lyrberg,P (2425) Politiken Cup 18th 1996 (4)}) 11... b5 {[%emt 0:01:59]} 12. Bf4 {[%emt 0:04:03]} b4 {[%emt 0:07:23] White has an edge.} 13. Nd5 {[%emt 0:10:14]} (13. Na4 $5 {[%cal Rf4d6]} Re8 14. Bxd6 $11) 13... Nxd5 $1 {[%emt 0:01:34]} 14. cxd5 {[%emt 0:01:05]} Nb6 {[%emt 0:12:14]} 15. h3 {[%emt 0:07:43]} Re8 {[%emt 0:11:25]} 16. Rfe1 {[%emt 0:01:42]} a5 {[%emt 0:02:37][%cal Ba6a5,Ba5a4][%mdl 32]} 17. Rad1 {[%emt 0:01:07]} Bb7 {[%emt 0:06:10]} 18. g4 {[%emt 0:11:03]} (18. e5 $11) 18... Qf6 $15 {[%emt 0:04:33][%csl LRb2,LRf4]} 19. Bc1 {[%emt 0:10:49]} Nd7 {[%emt 0:07:38]} 20. g5 {[%emt 0:03:15]} Qe7 {[%emt 0:01:28]} 21. Bf4 {[%emt 0:00:28]} a4 {[%emt 0:07:35]} 22. Qc1 {[%emt 0:03:32]} (22. h4 $11) 22... Rac8 {[%emt 0:02:48]} ({Better is} 22... a3 $17 23. b3 Bb2) 23. b3 {[%emt 0:07:12]} Ba6 {[%emt 0:03:00]} 24. Bf1 {[%emt 0:06:11] Repels c4} (24. bxa4 $11 {remains equal.} c4 25. Nd4) 24... Bxf1 $17 {[%emt 0:00:51]} 25. Kxf1 {[%emt 0:00:06]} axb3 {[%emt 0:08:22]} 26. axb3 {[%emt 0:00:06]} Ra8 {[%emt 0:00:02]} (26... c4 $142 $1 {[%cal Rc4b3]} 27. bxc4 Bc3) 27. Kg2 {[%emt 0:02:54]} Ra3 {[%emt 0:02:12]} 28. Qc4 {[%emt 0:07:22]} Ne5 {[%emt 0:03:30]} 29. Bxe5 {[%emt 0:03:04]} Bxe5 {[%emt 0:00:06]} 30. Re2 {[%emt 0:02:16]} f6 {[%emt 0:02:25]} (30... Rf8 {simplifies} 31. Rd3 f6 32. Nxe5 Qxe5 33. gxf6 Rxf6 34. Rg3 Kg7) 31. gxf6 {[%emt 0:01:26]} Qxf6 {[%emt 0:00:07]} ({But not} 31... Bxf6 32. e5 $14) 32. Rd3 {[%emt 0:01:42] White is weak on the dark squares} Rf8 {[%emt 0:01:09]} 33. Qc1 {[%emt 0:01:41]} Kg7 {[%emt 0:01:45]} (33... Qg7 $17 {Threatens to win with ...Bf4.} 34. Nxe5 Qxe5) 34. Qd2 {[%emt 0:02:45]} (34. Ng5 $1 $15 Kg8 35. Ne6) 34... h6 {[%emt 0:02:40][%cal Bh7h6,Bh6h5][%mdl 32]} 35. Nxe5 {[%emt 0:01:32]} Qxe5 {[%emt 0:00:12]} 36. Rg3 {[%emt 0:00:39]} Rf4 {[%emt 0:00:41] Black is much more active.} 37. Qd3 {[%emt 0:00:50]} h5 {[%emt 0:00:58]} 38. Ree3 $2 {[%emt 0:01:53] [#]} (38. Rge3 $17) 38... Ra2 $19 {[%emt 0:02:31]} 39. Rgf3 {[%emt 0:00:23]} (39. Re2 $142 Rxe2 40. Qxe2) 39... g5 $2 {[%emt 0:01:08]} (39... Qg5+ $19 {is more deadly.} 40. Kf1 Rxf3 41. Rxf3 Qc1+ 42. Kg2 Ra1) 40. Rxf4 {[%emt 0:00:30]} (40. Qb5 $17 {was forced.}) 40... gxf4 $17 {[%emt 0:00:12][%mdl 4096] Endgame KQR-KQR} ({Weaker is} 40... Qxf4 41. Rf3 Rd2 42. Qa6 Qxe4 43. Qxd6 Rxd5 44. Qf6+ Kh7 45. Qf7+ Kh6 46. Qf6+ Kh7 47. Qf7+ Kh6 48. Qf6+ Kh7 $11) 41. Re1 {[%emt 0:03:34] [#]} c4 $1 $40 {[%emt 0:10:03][%mdl 128] Black is out for blood.} 42. bxc4 {[%emt 0:16:16]} (42. Qxc4 f3+ {[%mdl 64] Deflection} 43. Kh1 (43. Kf1 {is a self mate.} Qh2 44. Qc7+ Kh6 45. Qc1+ Kg6) 43... Rxf2 44. Qc7+ Kg6 45. Rg1+ Rg2 {[%mdl 64] Decoy} 46. Rxg2+ fxg2+ 47. Kxg2 Qxe4+ 48. Kg1 Qe1+ 49. Kh2 Qe5+ 50. Kh1 Qxd5+ 51. Kh2) 42... Ra3 $19 {[%emt 0:00:27]} 43. Qd2 {[%emt 0:00:24]} Qg5+ {[%emt 0:02:30]} 44. Kh2 {[%emt 0:00:10]} Qh4 {[%emt 0:01:02]} 45. Rg1+ {[%emt 0:03:35]} Kh7 {[%emt 0:01:11][%csl Ga3][%cal Rh4h3]} 46. f3 {[%emt 0:00:36]} Rxf3 {[%emt 0:00:21] Weighted Error Value: White=0.72/Black=0.27 (precise)} 0-1

[Event "Marienbad B2-IM 2024"]
[Site "Marianske Lazne"]
[Date "2024.01.15"]
[Round "3.19"]
[White "Luberanski, Jakub"]
[Black "Pisk, Petr"]
[Result "1-0"]
[ECO "C61"]
[WhiteElo "2278"]
[BlackElo "2295"]
[Annotator "NA"]
[PlyCount "57"]
[EventDate "2024.01.10"]
[EventType "tourn"]
[EventCountry "CZE"]
[SourceTitle "playchess.com"]
[Source "ChessBase"]
[SourceQuality "1"]
[TimeControl "40/5400+30:1800+30"]

1. e4 {[%emt 0:00:02]} e5 {[%emt 0:00:37]} 2. Nf3 {[%emt 0:00:06]} Nc6 {[%emt 0:00:35]} 3. Bb5 {[%emt 0:00:04]} Nd4 {[%emt 0:02:59]} 4. Nxd4 {[%emt 0:01:37]} exd4 {[%emt 0:00:03]} 5. O-O {[%emt 0:00:10]} Bc5 {[%emt 0:00:48]} 6. Bc4 {[%emt 0:01:28]} d6 {[%emt 0:06:22]} 7. d3 {[%emt 0:01:25]} Nf6 {[%emt 0:01:31]} 8. Bg5 {[%emt 0:01:05]} Be6 {[%emt 0:19:56]} 9. Nd2 {[%emt 0:05:32]} h6 {[%emt 0:07:43]} 10. Bh4 {[%emt 0:04:32]} Bxc4 {[%emt 0:33:06]} 11. Nxc4 {[%emt 0:00:13]} Qd7 {[%emt 0:03:07]} 12. Bxf6 {[%emt 0:09:21]} gxf6 {[%emt 0:00:04]} 13. Qf3 {[%emt 0:00:51]} Qe6 {[%emt 0:01:13]} 14. b4 {[%emt 0:04:36]} Bb6 {[%emt 0:01:25]} 15. Rfe1 {[%emt 0:01:56]} c6 {[%emt 0:04:05]} 16. a4 {[%emt 0:01:07]} Bc7 {[%emt 0:01:20]} 17. b5 {[%emt 0:00:20]} Rg8 {[%emt 0:04:05]} 18. g3 {[%emt 0:01:09]} Rg5 {[%emt 0:02:38]} 19. Rab1 {[%emt 0:00:55]} Kd7 {[%emt 0:01:16]} 20. h4 {[%emt 0:03:41]} Rc5 {[%emt 0:00:24]} 21. Kg2 {[%emt 0:06:12]} h5 {[%emt 0:00:20]} 22. bxc6+ {[%emt 0:02:56]} bxc6 {[%emt 0:00:05]} 23. Rb7 {[%emt 0:00:20]} Kc8 {[%emt 0:02:14]} 24. Reb1 {[%emt 0:00:42]} Rb8 {[%emt 0:05:22]} 25. Rxb8+ {[%emt 0:00:06]} Bxb8 {[%emt 0:00:03]} 26. Qf4 {[%emt 0:00:41]} Bc7 {[%emt 0:00:58]} 27. Qh6 {[%emt 0:01:13]} Kd7 {[%emt 0:01:08]} 28. Qf8 {[%emt 0:00:33]} Bb6 {[%emt 0:00:32]} 29. Nxb6+ {[%emt 0:01:03]} 1-0

[Event "Marienbad B2-IM 2024"]
[Site "Marianske Lazne"]
[Date "2024.01.15"]
[Round "3.20"]
[White "Pavlis, Matej"]
[Black "Balinski, Damian"]
[Result "1/2-1/2"]
[ECO "A04"]
[WhiteElo "2088"]
[BlackElo "2226"]
[Annotator "NA"]
[PlyCount "61"]
[EventDate "2024.01.10"]
[EventType "tourn"]
[EventCountry "CZE"]
[SourceTitle "playchess.com"]
[Source "ChessBase"]
[SourceQuality "1"]
[TimeControl "40/5400+30:1800+30"]

1. Nf3 {[%emt 0:00:02]} b6 {[%emt 0:00:08]} 2. c4 {[%emt 0:00:22]} Bb7 {[%emt 0:00:15]} 3. g3 {[%emt 0:00:13]} Bxf3 {[%emt 0:00:39]} 4. exf3 {[%emt 0:00:07]} c5 {[%emt 0:00:10]} 5. Bg2 {[%emt 0:01:10]} Nc6 {[%emt 0:00:04]} 6. f4 {[%emt 0:00:54]} Rc8 {[%emt 0:00:02]} 7. b3 {[%emt 0:07:02]} Nh6 {[%emt 0:09:07]} 8. Bb2 {[%emt 0:05:29]} Nf5 {[%emt 0:01:44]} 9. Nc3 {[%emt 0:00:17]} e6 {[%emt 0:06:01]} 10. O-O {[%emt 0:01:53]} Be7 {[%emt 0:03:30]} 11. Rb1 {[%emt 0:11:19]} Bf6 {[%emt 0:08:09]} 12. Re1 {[%emt 0:02:25]} Nb4 {[%emt 0:10:43]} 13. Be4 {[%emt 0:04:15]} Nd4 {[%emt 0:08:39]} 14. a3 {[%emt 0:05:51]} Nbc6 {[%emt 0:00:23]} 15. d3 {[%emt 0:02:02]} O-O {[%emt 0:01:09]} 16. Ba1 {[%emt 0:08:36]} a5 {[%emt 0:03:46]} 17. h4 {[%emt 0:04:47]} Ne7 {[%emt 0:07:05]} 18. Kh1 {[%emt 0:10:17]} Nef5 {[%emt 0:03:16]} 19. h5 {[%emt 0:02:04]} Nd6 {[%emt 0:08:52]} 20. g4 {[%emt 0:06:49]} Nc6 {[%emt 0:04:24]} 21. g5 {[%emt 0:03:34]} Bd4 {[%emt 0:00:15]} 22. Qf3 {[%emt 0:01:35]} f6 {[%emt 0:05:18]} 23. g6 {[%emt 0:05:43]} f5 {[%emt 0:00:02]} 24. Bxc6 {[%emt 0:01:12]} Qh4+ {[%emt 0:00:05]} 25. Kg2 {[%emt 0:00:11]} Rxc6 {[%emt 0:00:56]} 26. gxh7+ {[%emt 0:01:12]} Kxh7 {[%emt 0:00:03]} 27. Ne2 {[%emt 0:01:19]} Bxa1 {[%emt 0:01:11]} 28. Rxa1 Nf7 {[%emt 0:01:28]} 29. d4 {[%emt 0:02:00]} Nh6 {[%emt 0:03:25]} 30. Rad1 {[%emt 0:02:12]} Rf7 {[%emt 0:02:36]} 31. Ng3 {[%emt 0:02:49]} 1/2-1/2

[Event "Marienbad B2-IM 2024"]
[Site "Marianske Lazne"]
[Date "2024.01.16"]
[Round "4.16"]
[White "Wang, Yukun"]
[Black "Balinski, Damian"]
[Result "1/2-1/2"]
[ECO "C42"]
[WhiteElo "2117"]
[BlackElo "2226"]
[Annotator "RC"]
[PlyCount "41"]
[EventDate "2024.01.10"]
[EventType "tourn"]
[EventCountry "CZE"]
[SourceTitle "playchess.com"]
[Source "ChessBase"]
[SourceQuality "1"]
[TimeControl "40/5400+30:1800+30"]

1. e4 {[%emt 0:02:42]} e5 {[%emt 0:00:02]} 2. Nf3 {[%emt 0:00:03]} Nf6 {[%emt 0:00:07]} 3. Nxe5 {[%emt 0:00:03]} d6 {[%emt 0:00:08]} 4. Nf3 {[%emt 0:00:02]} Nxe4 {[%emt 0:00:08]} 5. Nc3 {[%emt 0:00:01]} Nxc3 {[%emt 0:00:12]} 6. dxc3 {[%emt 0:00:10]} Be7 {[%emt 0:00:03]} 7. Be3 {[%emt 0:00:56]} Nc6 {[%emt 0:00:11]} 8. Qd2 {[%emt 0:00:34]} Be6 {[%emt 0:00:26]} 9. O-O-O {[%emt 0:00:35]} Qd7 {[%emt 0:00:20]} 10. a3 {[%emt 0:03:20]} a6 {[%emt 0:00:47]} 11. Ng5 {[%emt 0:07:57]} Bf5 {[%emt 0:04:12]} 12. Bc4 {[%emt 0:03:12]} O-O {[%emt 0:03:38]} 13. f4 {[%emt 0:08:47]} Bxg5 {[%emt 0:06:18]} 14. fxg5 {[%emt 0:00:01]} Ne5 {[%emt 0:03:21]} 15. Bb3 {[%emt 0:02:53]} b5 {[%emt 0:09:23]} 16. h4 {[%emt 0:07:09]} Nc4 {[%emt 0:14:20]} 17. Qf2 {[%emt 0:00:39]} Rae8 {[%emt 0:10:34]} 18. Bf4 {[%emt 0:09:07]} Bg4 {[%emt 0:05:09]} 19. Be3 Bf5 20. Bd4 Bg4 21. h5 1/2-1/2

[Event "Marienbad B2-IM 2024"]
[Site "Marianske Lazne"]
[Date "2024.01.16"]
[Round "4.17"]
[White "Pisk, Petr"]
[Black "Pavlis, Matej"]
[Result "1/2-1/2"]
[ECO "D02"]
[WhiteElo "2295"]
[BlackElo "2088"]
[Annotator "RC"]
[PlyCount "33"]
[EventDate "2024.01.10"]
[EventType "tourn"]
[EventCountry "CZE"]
[SourceTitle "playchess.com"]
[Source "ChessBase"]
[SourceQuality "1"]
[TimeControl "40/5400+30:1800+30"]

1. d4 {[%emt 0:00:04]} d5 {[%emt 0:00:05]} 2. Nf3 {[%emt 0:00:32]} e6 {[%emt 0:00:05]} 3. c4 {[%emt 0:03:00]} c5 {[%emt 0:00:23]} 4. e3 {[%emt 0:04:43]} Nf6 {[%emt 0:01:20]} 5. Nc3 {[%emt 0:00:16]} a6 {[%emt 0:01:51]} 6. a3 {[%emt 0:02:34]} Nc6 {[%emt 0:04:31]} 7. dxc5 {[%emt 0:04:15]} Bxc5 {[%emt 0:00:29]} 8. b4 {[%emt 0:00:42]} Ba7 {[%emt 0:01:27]} 9. Bb2 {[%emt 0:01:13]} O-O {[%emt 0:00:51]} 10. Qc2 {[%emt 0:05:13]} dxc4 {[%emt 0:07:08]} 11. Bxc4 {[%emt 0:02:55]} b5 {[%emt 0:00:11]} 12. Bd3 {[%emt 0:04:38]} Bb7 {[%emt 0:02:23]} 13. O-O {[%emt 0:08:24]} Rc8 {[%emt 0:02:09]} 14. Rfd1 {[%emt 0:02:16]} Qe7 {[%emt 0:05:49]} 15. Rac1 {[%emt 0:04:32]} Bb8 {[%emt 0:02:24]} 16. h3 {[%emt 0:12:24]} Rfd8 {[%emt 0:03:40]} 17. Qb1 {[%emt 0:08:59]} 1/2-1/2